bitfinex/quotes_BTCUSD_20240918
["timestamp","ask_amount","ask_price","bid_price","bid_amount"]
[1726646926289,3.0,60400.0,60399.0,1.712089]
[1726646926536,3.0,60400.0,60399.0,1.99266005]
[1726646926760,3.0,60400.0,60399.0,2.06708049]
[1726646927232,3.0,60400.0,60399.0,2.0422607]
[1726646927716,3.001,60400.0,60399.0,2.0472607]
[1726646928171,3.002,60400.0,60399.0,2.13073166]
[1726646928402,3.002,60400.0,60399.0,2.14981076]
[1726646929119,3.02797079,60400.0,60399.0,2.14981076]
[1726646929358,3.02797079,60400.0,60399.0,2.10021011]
[1726646932029,3.02797079,60400.0,60399.0,2.1002223]
[1726646933127,3.002,60400.0,60399.0,2.1002223]
[1726646934359,3.002,60400.0,60399.0,2.08113101]
[1726646937910,3.02797104,60400.0,60399.0,2.08113101]
[1726646939358,3.002,60400.0,60399.0,2.10016172]
[1726646941494,3.002,60400.0,60399.0,2.09816172]
[1726646941743,3.002,60400.0,60399.0,1.53904238]
[1726646941986,3.002,60400.0,60399.0,1.36001167]
[1726646942231,3.002,60400.0,60399.0,0.038]
[1726646942232,3.003644,60400.0,60399.0,0.038]
[1726646942467,3.264806,60400.0,60399.0,0.038]
[1726646942700,3.674831,60400.0,60399.0,0.038]
[1726646943174,3.341706,60400.0,60399.0,0.03]
[1726646943403,3.176144,60400.0,60399.0,0.031]
[1726646944092,3.189144,60400.0,60399.0,0.033]
[1726646944315,3.176144,60400.0,60399.0,0.031]
[1726646944550,3.176144,60400.0,60399.0,0.197565]
[1726646944769,3.188144,60400.0,60399.0,0.031]
[1726646944995,3.195144,60400.0,60399.0,0.032]
[1726646946205,3.203144,60400.0,60399.0,0.033]
[1726646946450,3.368706,60400.0,60399.0,0.033]
[1726646947446,3.72580796,60400.0,60399.0,0.033]
[1726646947691,3.69880796,60400.0,60399.0,0.03]
[1726646948122,3.70580796,60400.0,60399.0,0.031]
[1726646948341,3.37468296,60400.0,60399.0,0.031]
[1726646949037,3.70580796,60400.0,60399.0,0.031]
[1726646950149,3.71380796,60400.0,60399.0,0.032]
[1726646951603,3.71380796,60400.0,60399.0,0.002]
[1726646951604,4.04493296,60400.0,60399.0,0.002]
[1726646951856,3.71380796,60400.0,60399.0,0.002]
[1726646953271,4.04493296,60400.0,60399.0,0.002]
[1726646953527,3.71380796,60400.0,60399.0,0.002]
[1726646953797,3.687831,60400.0,60399.0,0.002]
[1726646954085,3.687831,60400.0,60392.0,0.000823]
[1726646954086,0.165582,60393.0,60392.0,0.000823]
[1726646954601,1.19566543,60393.0,60391.0,0.001022]
[1726646954602,0.165584,60392.0,60391.0,0.001022]
[1726646954828,1.04187903,60392.0,60391.0,0.001022]
[1726646955056,1.14077903,60392.0,60391.0,0.001022]
[1726646955284,1.47194803,60392.0,60391.0,0.001022]
[1726646955795,1.282189,60387.0,60386.0,5.633e-05]
[1726646956028,1.62466705,60387.0,60386.0,5.633e-05]
[1726646956491,1.70546705,60387.0,60386.0,5.633e-05]
[1726646956952,1.73145357,60387.0,60386.0,5.633e-05]
[1726646957200,1.74545357,60387.0,60386.0,5.633e-05]
[1726646957431,1.59358663,60387.0,60386.0,5.633e-05]
[1726646957664,1.62158663,60387.0,60386.0,5.633e-05]
[1726646958191,1.29038963,60387.0,60386.0,5.633e-05]
[1726646958429,0.51328452,60387.0,60386.0,5.633e-05]
[1726646958891,0.83048152,60387.0,60386.0,5.633e-05]
[1726646959124,0.84448152,60387.0,60386.0,5.633e-05]
[1726646959611,1.25338963,60387.0,60386.0,5.633e-05]
[1726646959843,1.26738963,60387.0,60386.0,5.633e-05]
[1726646960068,1.61258663,60387.0,60386.0,5.633e-05]
[1726646960292,1.59358663,60387.0,60386.0,5.633e-05]
[1726646960517,1.60758663,60387.0,60386.0,5.633e-05]
[1726646962931,1.58160011,60387.0,60386.0,5.633e-05]
[1726646966333,1.58160011,60387.0,60386.0,0.00087833]
[1726646972016,0.705595,60387.0,60386.0,0.00087833]
[1726646972512,0.2088,60387.0,60386.0,0.00087833]
[1726646972782,0.028,60387.0,60386.0,0.00087833]
[1726646973016,0.293598,60387.0,60386.0,0.00087833]
[1726646973507,0.279598,60387.0,60386.0,0.00087833]
[1726646973755,0.293598,60387.0,60386.0,0.00187833]
[1726646973987,0.279598,60387.0,60386.0,0.00187833]
[1726646974223,0.289598,60387.0,60386.0,0.00187833]
[1726646974933,0.275598,60387.0,60386.0,0.00087833]
[1726646975391,0.284598,60387.0,60386.0,0.00187833]
[1726646976103,0.615795,60387.0,60386.0,0.00187833]
[1726646976394,0.284598,60387.0,60386.0,0.00187833]
[1726646976885,0.969992,60387.0,60386.0,0.00187833]
[1726646977819,1.068992,60387.0,60386.0,0.00187833]
[1726646978051,1.09497731,60387.0,60386.0,0.00187833]
[1726646978547,1.51788542,60387.0,60386.0,0.00187833]
[1726646981299,1.18668842,60387.0,60386.0,0.00187833]
[1726646982241,1.08768842,60387.0,60386.0,0.00187833]
[1726646982715,1.06170311,60387.0,60386.0,0.00187833]
[1726646987502,1.08768847,60387.0,60386.0,0.00187833]
[1726646990992,0.75649147,60387.0,60386.0,0.00187833]
[1726646991222,0.33358336,60387.0,60386.0,0.00187833]
[1726646991455,0.66478036,60387.0,60386.0,0.00187833]
[1726646993056,0.67209835,60387.0,60386.0,0.00187833]
[1726646993591,0.64611299,60387.0,60386.0,0.00187833]
[1726646995457,1.49172595,60387.0,60386.0,0.00187833]
[1726646995920,1.51643241,60387.0,60386.0,0.00187833]
[1726646996147,1.39290011,60387.0,60386.0,0.00187833]
[1726646996371,1.5165949,60387.0,60386.0,0.00187833]
[1726646996733,1.52665769,60387.0,60386.0,0.00187833]
[1726646997384,1.4029629,60387.0,60386.0,0.00187833]
[1726646998070,1.42894887,60387.0,60386.0,0.00187833]
[1726646998793,1.52784887,60387.0,60386.0,0.00187833]
[1726646999242,1.51778608,60387.0,60386.0,0.00187833]
[1726646999998,1.66602484,60387.0,60386.0,0.00187833]
[1726647001258,1.51778608,60387.0,60386.0,0.00187833]
[1726647002014,1.66646034,60387.0,60386.0,0.00187833]
[1726647002775,1.51778608,60387.0,60386.0,0.00187833]
[1726647003022,1.66645958,60387.0,60386.0,0.00187833]
[1726647003775,1.54157361,60387.0,60386.0,0.00187833]
[1726647004018,1.39290011,60387.0,60386.0,0.00187833]
[1726647005722,1.75409711,60387.0,60386.0,0.00187833]
[1726647005954,1.84639711,60387.0,60386.0,0.00187833]
[1726647006197,1.84439711,60387.0,60386.0,0.00187833]
[1726647007031,1.41888738,60387.0,60386.0,0.00187833]
[1726647007496,1.41888738,60387.0,60386.0,0.00087833]
[1726647007739,1.39988738,60387.0,60386.0,0.00087833]
[1726647007983,1.39988738,60387.0,60386.0,0.29227933]
[1726647007984,0.12834407,60387.0,60386.0,0.29227933]
[1726647008261,0.05398727,60387.0,60386.0,0.29227933]
[1726647008489,0.03998727,60387.0,60386.0,0.29227933]
[1726647009009,0.03998727,60387.0,60386.0,0.62348133]
[1726647009254,0.02598727,60387.0,60386.0,0.29227933]
[1726647010245,0.03998727,60387.0,60386.0,0.29227933]
[1726647010477,0.02598727,60387.0,60386.0,0.29227933]
[1726647010703,0.03298727,60387.0,60386.0,0.29227933]
[1726647011146,0.03298727,60387.0,60386.0,0.62348133]
[1726647011369,0.03298727,60387.0,60386.0,0.95468333]
[1726647013485,0.007,60387.0,60386.0,0.95468333]
[1726647013708,0.007,60387.0,60386.0,1.448939]
[1726647014669,0.004,60387.0,60386.0,1.448939]
[1726647014900,0.007,60387.0,60386.0,1.448939]
[1726647015128,0.003,60387.0,60386.0,1.448939]
[1726647015364,0.003,60387.0,60386.0,1.450939]
[1726647015589,0.001644,60391.0,60390.0,1.25583]
[1726647015830,0.001644,60391.0,60390.0,1.44888367]
[1726647016303,0.001644,60391.0,60390.0,0.78652367]
[1726647016524,0.001644,60391.0,60390.0,0.1267]
[1726647016748,0.001644,60391.0,60390.0,0.29229]
[1726647017239,0.001644,60391.0,60390.0,0.62347]
[1726647018146,0.0276227,60391.0,60390.0,0.62347]
[1726647018369,0.0276227,60391.0,60390.0,0.62447]
[1726647019961,0.0276227,60391.0,60390.0,0.95565]
[1726647020195,0.0276227,60391.0,60390.0,0.62447]
[1726647023363,0.001644,60391.0,60390.0,0.62447]
[1726647025179,0.001644,60391.0,60390.0,1.11870367]
[1726647026581,0.02762228,60391.0,60390.0,1.11952567]
[1726647030676,0.02762228,60391.0,60390.0,0.78834567]
[1726647031157,0.02762228,60391.0,60390.0,0.625292]
[1726647032624,0.02762228,60391.0,60390.0,0.624292]
[1726647032861,0.02862228,60391.0,60390.0,0.624292]
[1726647033323,0.002644,60391.0,60390.0,0.624292]
[1726647035224,0.15451094,60391.0,60390.0,0.030822]
[1726647035458,1.09661062,60391.0,60390.0,0.000822]
[1726647035698,1.42778562,60391.0,60390.0,0.000822]
[1726647035924,1.09661062,60391.0,60390.0,0.000822]
[1726647036636,1.13259306,60391.0,60390.0,0.000822]
[1726647037127,1.12159306,60391.0,60390.0,0.000822]
[1726647037589,1.14859306,60391.0,60390.0,0.000822]
[1726647038113,1.00972612,60391.0,60390.0,0.000822]
[1726647038346,0.99572612,60391.0,60390.0,0.000822]
[1726647038618,0.98272612,60391.0,60390.0,0.000822]
[1726647038875,0.99672612,60391.0,60390.0,0.000822]
[1726647039097,0.99572612,60391.0,60390.0,0.000822]
[1726647039319,0.98372612,60391.0,60390.0,0.000822]
[1726647039766,1.32790112,60391.0,60390.0,0.000822]
[1726647040444,1.34190112,60391.0,60390.0,0.000822]
[1726647040917,1.59236806,60391.0,60390.0,0.000822]
[1726647041137,1.69236806,60391.0,60390.0,0.000822]
[1726647041829,1.72236806,60391.0,60390.0,0.000822]
[1726647042058,2.16374306,60391.0,60390.0,0.000822]
[1726647042304,2.2378126,60391.0,60390.0,0.000822]
[1726647042540,2.16374306,60391.0,60390.0,0.000822]
[1726647043042,2.45593562,60391.0,60390.0,0.000822]
[1726647043296,2.12476062,60391.0,60390.0,0.000822]
[1726647043525,2.11076062,60391.0,60390.0,0.000822]
[1726647044014,2.12476062,60391.0,60390.0,0.000822]
[1726647044945,2.11076062,60391.0,60390.0,0.000822]
[1726647045164,2.12476062,60391.0,60390.0,0.000822]
[1726647046138,2.15074841,60391.0,60390.0,0.000822]
[1726647047523,2.48192341,60391.0,60390.0,0.000822]
[1726647048255,2.46792341,60391.0,60390.0,0.000822]
[1726647048767,2.25604994,60387.0,60386.0,0.00087833]
[1726647049012,2.34748682,60387.0,60386.0,0.00087833]
[1726647049481,2.54796375,60387.0,60386.0,3.3e-07]
[1726647049945,2.42458682,60387.0,60386.0,3.3e-07]
[1726647050427,2.56192375,60387.0,60386.0,3.3e-07]
[1726647050672,2.57592375,60387.0,60386.0,3.3e-07]
[1726647051361,2.58585783,60387.0,60386.0,3.3e-07]
[1726647053495,2.4625209,60387.0,60386.0,3.3e-07]
[1726647053746,2.58585783,60387.0,60386.0,3.3e-07]
[1726647054478,2.4625209,60387.0,60386.0,3.3e-07]
[1726647055392,2.56109757,60387.0,60386.0,3.3e-07]
[1726647057463,2.4625209,60387.0,60386.0,3.3e-07]
[1726647058136,2.48851109,60387.0,60386.0,3.3e-07]
[1726647058390,2.56241147,60387.0,60386.0,3.3e-07]
[1726647059797,1.282669,60362.0,60359.0,0.24835876]
[1726647060024,1.52967638,60362.0,60359.0,0.24835876]
[1726647060259,1.52967638,60362.0,60354.0,0.0915]
[1726647060497,1.55567155,60362.0,60354.0,0.0915]
[1726647061469,1.56967155,60362.0,60354.0,0.0915]
[1726647062397,1.56967155,60362.0,60348.0,6.043e-05]
[1726647062398,0.03999517,60362.0,60361.0,0.1011838]
[1726647062632,0.03999517,60362.0,60361.0,0.1311838]
[1726647062884,0.014,60362.0,60361.0,0.1311838]
[1726647063173,0.193667,60362.0,60361.0,0.1311838]
[1726647063440,0.525001,60362.0,60361.0,0.1311838]
[1726647063729,0.497001,60362.0,60361.0,0.1011838]
[1726647063994,0.96047544,60362.0,60361.0,0.0047838]
[1726647064236,1.28480944,60362.0,60361.0,0.0047838]
[1726647064478,1.38480944,60362.0,60361.0,0.0047838]
[1726647064704,1.39480944,60362.0,60361.0,0.0047838]
[1726647065141,1.40480944,60362.0,60361.0,0.0047838]
[1726647065380,1.39780944,60362.0,60361.0,0.0047838]
[1726647065829,1.40580944,60362.0,60361.0,0.0047838]
[1726647066295,1.39780944,60362.0,60361.0,0.0047838]
[1726647066530,1.38880944,60362.0,60361.0,0.0047838]
[1726647066968,1.40180944,60362.0,60361.0,0.0047838]
[1726647067207,0.66999637,60362.0,60361.0,0.1009838]
[1726647067570,0.33866237,60362.0,60361.0,0.1009838]
[1726647067787,0.66999637,60362.0,60361.0,0.1009838]
[1726647067979,0.23866237,60362.0,60361.0,0.1009838]
[1726647068235,0.56999637,60362.0,60361.0,0.1009838]
[1726647069415,0.90133037,60362.0,60361.0,0.1009838]
[1726647070320,0.23866237,60362.0,60361.0,0.1009838]
[1726647071716,0.54699637,60362.0,60361.0,0.1009838]
[1726647073305,0.87833037,60362.0,60361.0,0.0047838]
[1726647073542,0.87833037,60362.0,60348.0,0.08186043]
[1726647073543,0.355334,60362.0,60348.0,0.08186043]
[1726647073827,0.165674,60360.0,60355.0,0.165683]
[1726647074048,0.355334,60362.0,60353.0,0.331381]
[1726647074281,0.355334,60362.0,60359.0,0.165673]
[1726647074282,0.024,60362.0,60359.0,0.165673]
[1726647074538,0.024,60362.0,60357.0,0.165679]
[1726647074800,0.024,60362.0,60358.0,0.165677]
[1726647074801,0.013,60362.0,60358.0,0.165677]
[1726647075117,0.024,60362.0,60358.0,0.165677]
[1726647075317,0.024,60362.0,60361.0,0.000822]
[1726647075579,0.013,60362.0,60361.0,0.000822]
[1726647075837,0.176667,60362.0,60361.0,0.000822]
[1726647076067,0.189667,60362.0,60361.0,0.000822]
[1726647076284,0.178667,60362.0,60361.0,0.000822]
[1726647076512,0.024,60362.0,60361.0,0.000822]
[1726647076738,0.037,60362.0,60361.0,0.000822]
[1726647081108,0.06299197,60362.0,60361.0,0.57493]
[1726647082014,0.03699197,60362.0,60361.0,0.57493]
[1726647082491,0.02599197,60362.0,60361.0,0.243591]
[1726647082755,0.02599197,60362.0,60361.0,0.57493]
[1726647082995,0.04199197,60362.0,60361.0,0.57493]
[1726647083445,0.016,60362.0,60361.0,0.57493]
[1726647086392,0.016,60362.0,60361.0,0.243591]
[1726647087083,0.016,60362.0,60361.0,0.57493]
[1726647087805,0.017646,60362.0,60361.0,0.243591]
[1726647088269,0.017646,60362.0,60361.0,0.077922]
[1726647088512,0.017646,60362.0,60361.0,0.243591]
[1726647088732,0.017646,60362.0,60361.0,0.077922]
[1726647089183,0.017646,60362.0,60361.0,0.243591]
[1726647090114,0.37497158,60362.0,60361.0,0.000822]
[1726647090453,0.514647,60362.0,60361.0,0.000822]
[1726647090659,0.04363801,60362.0,60361.0,0.000822]
[1726647090862,0.20930501,60362.0,60361.0,0.000822]
[1726647092348,0.54063901,60362.0,60361.0,0.000822]
[1726647093295,0.514647,60362.0,60361.0,0.000822]
[1726647094003,1.54138325,60362.0,60361.0,0.000822]
[1726647094232,1.46715544,60362.0,60361.0,0.005194]
[1726647094477,1.66612585,60362.0,60361.0,0.005194]
[1726647094935,1.65912585,60362.0,60361.0,0.005194]
[1726647095165,1.55115544,60362.0,60361.0,0.005194]
[1726647095398,1.56515544,60362.0,60361.0,0.005194]
[1726647095624,1.57915544,60362.0,60361.0,0.005194]
[1726647096106,1.59315544,60362.0,60361.0,0.005194]
[1726647096331,1.48166942,60362.0,60361.0,0.005194]
[1726647096786,1.5076644,60362.0,60361.0,0.005194]
[1726647097064,1.49566942,60362.0,60361.0,0.005194]
[1726647097535,1.48166639,60362.0,60361.0,0.005194]
[1726647097758,1.49566639,60362.0,60361.0,0.005194]
[1726647098465,1.48166639,60362.0,60361.0,0.005194]
[1726647098705,1.45366639,60362.0,60361.0,0.005194]
[1726647099176,1.46766639,60362.0,60361.0,0.005194]
[1726647099645,1.48166639,60362.0,60361.0,0.005194]
[1726647099870,1.49566639,60362.0,60361.0,0.005194]
[1726647100103,1.5216615,60362.0,60361.0,0.005194]
[1726647100336,1.09518706,60362.0,60361.0,0.005194]
[1726647100562,0.89797611,60362.0,60361.0,0.005194]
[1726647100792,0.06964111,60362.0,60361.0,0.005194]
[1726647101500,0.05564111,60362.0,60361.0,0.005194]
[1726647101964,0.05564111,60362.0,60360.0,0.0901]
[1726647102419,0.02764111,60362.0,60360.0,0.0901]
[1726647102657,0.03664111,60362.0,60360.0,0.0901]
[1726647102881,0.04564111,60362.0,60360.0,0.255771]
[1726647103105,0.04564111,60362.0,60360.0,0.0901]
[1726647103332,0.04564111,60362.0,60353.0,0.15186694]
[1726647103570,0.165671,60361.0,60356.0,0.165682]
[1726647104013,0.026646,60362.0,60355.0,0.331369]
[1726647104237,0.019646,60362.0,60359.0,0.165675]
[1726647104476,0.026646,60362.0,60357.0,0.497037]
[1726647104982,0.331352,60359.0,60349.0,0.331405]
[1726647104986,0.165681,60357.0,60351.0,0.095923]
[1726647105242,0.331352,60359.0,60351.0,0.095923]
[1726647105495,0.165682,60357.0,60352.0,0.165694]
[1726647105767,0.331352,60359.0,60352.0,0.331387]
[1726647106058,0.165684,60356.0,60352.0,0.165693]
[1726647106515,0.165686,60355.0,60351.0,0.095923]
[1726647106779,0.16569,60354.0,60351.0,0.000823]
[1726647108054,0.19168508,60354.0,60351.0,0.000823]
[1726647110654,0.497083,60352.0,60351.0,0.000823]
[1726647111119,0.828472,60352.0,60351.0,0.000823]
[1726647111842,0.497083,60352.0,60351.0,0.000823]
[1726647113045,0.499083,60352.0,60351.0,0.000823]
[1726647113270,0.500083,60352.0,60351.0,0.000823]
[1726647113999,0.003,60352.0,60351.0,0.000823]
[1726647114238,0.168694,60352.0,60351.0,0.000823]
[1726647114497,0.003,60352.0,60351.0,0.000823]
[1726647116577,0.831472,60352.0,60351.0,0.000823]
[1726647117074,0.85746929,60352.0,60351.0,0.000823]
[1726647118590,1.18885829,60352.0,60351.0,0.000823]
[1726647119363,0.85746929,60352.0,60351.0,0.000823]
[1726647120606,0.52608029,60352.0,60351.0,0.000823]
[1726647121314,0.85746929,60352.0,60351.0,0.000823]
[1726647123408,0.831472,60352.0,60351.0,0.000823]
[1726647125611,1.162861,60352.0,60351.0,0.000823]
[1726647125858,1.47787397,60352.0,60351.0,0.000823]
[1726647126104,1.89166297,60352.0,60351.0,0.000823]
[1726647126341,1.93138048,60352.0,60351.0,0.000823]
[1726647126602,1.93238048,60352.0,60351.0,0.000823]
[1726647126835,1.93038048,60352.0,60351.0,0.000823]
[1726647127076,1.98238229,60352.0,60351.0,0.000823]
[1726647127560,1.93638229,60352.0,60351.0,0.000823]
[1726647127829,0.96647381,60352.0,60351.0,0.000823]
[1726647128066,0.20369581,60352.0,60351.0,0.000823]
[1726647128524,0.02600181,60352.0,60351.0,0.000823]
[1726647128758,0.05400181,60352.0,60351.0,0.000823]
[1726647129230,0.02600181,60352.0,60351.0,0.000823]
[1726647129458,0.04400181,60352.0,60351.0,0.000823]
[1726647129916,0.04500181,60352.0,60351.0,0.000823]
[1726647130394,0.05200181,60352.0,60351.0,0.000823]
[1726647131561,0.04500181,60352.0,60351.0,0.000823]
[1726647132044,0.21469581,60352.0,60351.0,0.000823]
[1726647132287,0.54608481,60352.0,60351.0,0.000823]
[1726647132548,0.52308481,60352.0,60351.0,0.000823]
[1726647132799,0.53008481,60352.0,60351.0,0.000823]
[1726647133029,0.02900181,60352.0,60351.0,0.000823]
[1726647133271,0.02600181,60352.0,60351.0,0.000823]
[1726647133510,0.007,60352.0,60351.0,0.000823]
[1726647133975,0.172694,60352.0,60351.0,0.000823]
[1726647134235,0.168694,60352.0,60351.0,0.000823]
[1726647134470,0.172694,60352.0,60351.0,0.000823]
[1726647134696,0.169694,60352.0,60351.0,0.000823]
[1726647135173,0.172694,60352.0,60351.0,0.000823]
[1726647135637,0.169694,60352.0,60351.0,0.000823]
[1726647135872,0.172694,60352.0,60351.0,0.000823]
[1726647136352,0.168694,60352.0,60351.0,0.000823]
[1726647136591,0.331365,60357.0,60351.0,0.000823]
[1726647136832,0.004,60352.0,60351.0,0.166519]
[1726647137059,0.165687,60355.0,60351.0,0.000823]
[1726647137299,0.004,60352.0,60351.0,0.000823]
[1726647137753,0.003,60352.0,60351.0,0.000823]
[1726647138230,0.165689,60354.0,60351.0,0.000823]
[1726647138462,0.002,60352.0,60351.0,0.000823]
[1726647138911,0.002,60352.0,60351.0,0.16652]
[1726647139139,0.165689,60354.0,60351.0,0.000823]
[1726647139621,0.004,60354.0,60351.0,0.166519]
[1726647139859,0.003,60352.0,60351.0,0.166519]
[1726647140088,0.004,60354.0,60351.0,0.166519]
[1726647140089,0.004,60354.0,60351.0,0.000823]
[1726647140350,0.008,60354.0,60352.0,0.165694]
[1726647140824,0.004,60354.0,60352.0,0.165694]
[1726647141052,0.007,60354.0,60352.0,0.331389]
[1726647141282,0.007,60354.0,60351.0,0.166518]
[1726647141509,0.165686,60355.0,60351.0,0.166519]
[1726647141740,0.331372,60356.0,60351.0,0.000823]
[1726647142009,0.168689,60354.0,60351.0,0.000823]
[1726647142505,0.165689,60354.0,60351.0,0.000823]
[1726647142726,0.168689,60354.0,60351.0,0.000823]
[1726647142966,0.172689,60354.0,60351.0,0.000823]
[1726647143788,0.011,60354.0,60351.0,0.000823]
[1726647144031,0.176691,60354.0,60351.0,0.000823]
[1726647144281,0.011,60354.0,60351.0,0.166519]
[1726647144794,0.011,60354.0,60352.0,0.165693]
[1726647145536,0.011,60354.0,60351.0,0.000823]
[1726647145831,0.008,60354.0,60353.0,0.165691]
[1726647146089,0.011,60354.0,60353.0,0.165691]
[1726647146333,0.003,60354.0,60353.0,0.497074]
[1726647146572,0.007,60354.0,60353.0,0.165691]
[1726647147271,0.004,60354.0,60353.0,0.165691]
[1726647147506,0.007,60354.0,60353.0,0.165691]
[1726647147972,0.02999605,60354.0,60353.0,0.165691]
[1726647148210,0.02999605,60354.0,60352.0,0.165694]
[1726647148460,0.19568605,60354.0,60351.0,0.000823]
[1726647148729,0.02999605,60354.0,60353.0,0.165691]
[1726647148965,0.02999605,60354.0,60351.0,0.000823]
[1726647149192,0.02599605,60354.0,60352.0,0.165693]
[1726647149433,0.02899605,60354.0,60352.0,0.165693]
[1726647149699,0.19468505,60354.0,60351.0,0.000823]
[1726647149930,0.19468505,60354.0,60351.0,0.16652]
[1726647150165,0.03299605,60354.0,60351.0,0.16652]
[1726647150399,0.03199605,60354.0,60351.0,0.000823]
[1726647150634,0.03599605,60354.0,60351.0,0.166519]
[1726647150869,0.02999605,60354.0,60351.0,0.000823]
[1726647151367,0.165691,60353.0,60351.0,0.000823]
[1726647151617,0.03299605,60354.0,60351.0,0.000823]
[1726647151618,0.165694,60352.0,60351.0,0.000823]
[1726647151851,0.828472,60352.0,60351.0,0.000823]
[1726647152566,0.497083,60352.0,60351.0,0.000823]
[1726647153019,0.499083,60352.0,60351.0,0.000823]
[1726647154606,0.500083,60352.0,60351.0,0.000823]
[1726647156476,0.52608081,60352.0,60351.0,0.000823]
[1726647157620,0.500083,60352.0,60351.0,0.000823]
[1726647160242,0.168694,60352.0,60351.0,0.000823]
[1726647160469,0.500083,60352.0,60351.0,0.000823]
[1726647161461,0.831472,60352.0,60351.0,0.000823]
[1726647161959,0.85747051,60352.0,60351.0,0.000823]
[1726647162186,0.831472,60352.0,60351.0,0.000823]
[1726647165420,0.85747064,60352.0,60351.0,0.000823]
[1726647174398,0.831472,60352.0,60351.0,0.000823]
[1726647178947,0.85747096,60352.0,60351.0,0.000823]
[1726647183534,0.831472,60352.0,60351.0,0.000823]
[1726647185896,0.828472,60352.0,60351.0,0.000823]
[1726647186145,0.841472,60352.0,60351.0,0.000823]
[1726647186612,1.28437397,60352.0,60351.0,0.000823]
[1726647186958,1.48437336,60352.0,60351.0,0.000823]
[1726647187201,1.50914023,60352.0,60351.0,0.000823]
[1726647187464,1.48436209,60352.0,60351.0,0.000823]
[1726647187733,1.49136209,60352.0,60351.0,0.000823]
[1726647188246,1.48236209,60352.0,60351.0,0.000823]
[1726647188507,1.49436209,60352.0,60351.0,0.000823]
[1726647188763,2.0579961,60352.0,60351.0,0.000823]
[1726647188998,1.92716177,60352.0,60351.0,0.000823]
[1726647189474,1.93716177,60352.0,60351.0,0.000823]
[1726647189702,1.92516177,60352.0,60351.0,0.000823]
[1726647189938,1.91716177,60352.0,60351.0,0.000823]
[1726647190163,1.91716177,60352.0,60348.0,0.00173133]
[1726647190164,1.491322,60349.0,60348.0,0.00173133]
[1726647190393,2.32508388,60349.0,60348.0,0.00173133]
[1726647190621,2.475495,60349.0,60348.0,0.00173133]
[1726647191353,2.32708388,60349.0,60348.0,0.00173133]
[1726647191868,2.32708388,60349.0,60347.0,0.000822]
[1726647191869,0.002,60345.0,60343.0,0.0039618]
[1726647192134,0.002,60345.0,60337.0,0.000822]
[1726647192135,0.652199,60338.0,60337.0,0.000822]
[1726647192370,0.652199,60338.0,60325.0,0.0047838]
[1726647192371,1.19616387,60326.0,60325.0,2.8e-07]
[1726647192612,0.03,60310.0,60294.0,0.24853777]
[1726647192858,0.829255,60295.0,60294.0,0.24853777]
[1726647193114,0.829255,60295.0,60291.0,0.00026658]
[1726647193115,0.829295,60292.0,60291.0,0.00026658]
[1726647193375,0.829295,60292.0,60276.0,0.04965569]
[1726647193376,0.55771,60276.0,60272.0,6.863e-05]
[1726647193619,0.55771,60276.0,60271.0,0.0002]
[1726647193620,0.165914,60272.0,60271.0,0.0002]
[1726647193905,0.00734654,60276.0,60271.0,0.15253387]
[1726647194188,0.1,60290.0,60271.0,0.0002]
[1726647194189,0.123,60283.0,60271.0,0.0002]
[1726647194430,0.123,60287.0,60271.0,0.0002]
[1726647194431,0.165898,60278.0,60271.0,0.0002]
[1726647194796,0.123,60281.0,60271.0,0.0002]
[1726647194967,0.1,60281.0,60271.0,0.166116]
[1726647195227,0.20689028,60281.0,60271.0,0.0002]
[1726647195493,0.165893,60280.0,60271.0,0.0002]
[1726647195750,0.012,60276.0,60271.0,0.0002]
[1726647196288,0.02603095,60279.0,60271.0,0.0002]
[1726647196562,0.02603095,60279.0,60278.0,0.497694]
[1726647197089,0.02603095,60279.0,60278.0,0.99254367]
[1726647197347,0.02603095,60279.0,60278.0,1.32433967]
[1726647197583,0.02603095,60279.0,60278.0,1.32633967]
[1726647197815,0.51395287,60311.0,60278.0,1.32633967]
[1726647197816,0.0781,60320.0,60296.0,0.15233387]
[1726647198058,0.99511564,60313.0,60305.0,0.15233387]
[1726647198285,0.10248878,60319.0,60301.0,0.15233387]
[1726647198516,0.10248878,60319.0,60310.0,0.165809]
[1726647198741,0.10248878,60319.0,60301.0,0.15233387]
[1726647198975,0.10248878,60319.0,60309.0,0.165811]
[1726647199206,0.18233387,60325.0,60310.0,0.165809]
[1726647199207,0.165779,60322.0,60310.0,0.165809]
[1726647199439,0.10138913,60321.0,60302.0,0.00331621]
[1726647199662,0.014,60319.0,60308.0,0.331627]
[1726647199903,0.028,60319.0,60313.0,0.1658]
[1726647200142,0.028,60319.0,60305.0,0.15233387]
[1726647200384,0.014,60319.0,60317.0,0.165789]
[1726647200619,0.014,60319.0,60315.0,0.165795]
[1726647201312,0.0410127,60319.0,60309.0,0.332622]
[1726647201538,0.0260127,60319.0,60317.0,0.165789]
[1726647201765,0.0270127,60319.0,60318.0,0.165787]
[1726647202220,0.0390127,60319.0,60318.0,0.31812087]
[1726647202547,0.0400127,60319.0,60318.0,0.98127087]
[1726647202646,0.0015758,60332.0,60318.0,0.15233387]
[1726647202872,0.0015758,60332.0,60322.0,0.331553]
[1726647203101,0.0015758,60332.0,60328.0,0.16576]
[1726647203360,0.0015758,60332.0,60329.0,0.165757]
[1726647203604,0.0015758,60332.0,60326.0,0.165765]
[1726647203865,0.1,60330.0,60326.0,0.165765]
[1726647204092,0.1673258,60332.0,60326.0,0.165765]
[1726647204318,0.0015758,60332.0,60327.0,0.165761]
[1726647204541,0.0015758,60332.0,60327.0,0.165762]
[1726647204740,0.0015758,60332.0,60328.0,0.165759]
[1726647204997,0.0015758,60332.0,60318.0,0.31538754]
[1726647205219,0.0125758,60332.0,60327.0,0.331526]
[1726647205443,0.0125758,60332.0,60329.0,0.165756]
[1726647205898,0.0025758,60332.0,60327.0,0.001]
[1726647206130,0.0115758,60332.0,60331.0,0.82876]
[1726647206603,0.331504,60331.0,60319.0,0.0783]
[1726647206833,0.0015758,60332.0,60310.0,0.412819]
[1726647206834,0.331548,60323.0,60310.0,0.412819]